[Event "NOR-ch Clubs 2017"]
[Site "Kristiansund"]
[Date "2017.10.22"]
[Round "5"]
[White "Moen, Ole Christian"]
[Black "Unhjem, Bjorn Robert Lovoll"]
[Result "1/2-1/2"]
[ECO "B24"]
[WhiteElo "2174"]
[BlackElo "1726"]
[Annotator "NA"]
[PlyCount "115"]
[EventDate "2017.??.??"]
[EventType "team-tourn"]
[EventCountry "NOR"]
[SourceTitle "playchess.com"]
[Source "ChessBase"]
[SourceQuality "1"]
[TimeControl "40/5400:1800"]

1. e4 {[%emt 0:00:04]} c5 {[%emt 0:04:17]} 2. Nc3 {[%emt 0:00:19]} Nc6 {[%emt 0:00:31]} 3. Nf3 {[%emt 0:00:14]} g6 {[%emt 0:01:16]} 4. Bb5 {[%emt 0:00:07]} Bg7 {[%emt 0:01:49]} 5. O-O {[%emt 0:00:08]} d6 {[%emt 0:02:25]} 6. h3 {[%emt 0:00:10] B31: Sicilian: 2...Nc6 3 Bb5 g6} (6. Re1 Bd7 7. a4 Rc8 8. d3 Nf6 9. Nd5 O-O 10. Bg5 a6 11. Bxf6 exf6 12. Bc4 f5 13. c3 fxe4 14. dxe4 {1-0 (29) Carlsen,M (2832)-Giri,A (2771) Stavanger 2017}) 6... e6 {[%emt 0:00:32]} 7. Bxc6+ {[%emt 0:02:18]} bxc6 {[%emt 0:00:05]} 8. e5 $146 {[%emt 0:00:24]} ({Predecessor:} 8. Re1 Ne7 9. Ne2 Rb8 10. c3 O-O 11. Qa4 {1-0 (39) Bimbatti Dorante,G (2010)-Cano Sevila,I (1850) Mataro 2016}) 8... dxe5 {[%emt 0:05:42]} 9. Re1 {[%emt 0:00:31]} Qc7 {[%emt 0:01:07]} 10. Qe2 {[%emt 0:00:09]} Ne7 {[%emt 0:00:09]} 11. Ne4 {[%emt 0:09:39]} (11. d3 $11) 11... Nf5 {[%emt 0:01:04]} (11... f5 $17 12. Nxc5 e4) 12. c3 {[%emt 0:00:07]} O-O {[%emt 0:03:01]} 13. d3 {[%emt 0:06:34]} h6 {[%emt 0:06:41]} 14. Nxc5 {[%emt 0:00:49]} Rd8 {[%emt 0:00:53]} 15. Nxe5 {[%emt 0:00:51]} Rd5 {[%emt 0:00:18]} 16. Nxg6 {[%emt 0:12:50]} Rxc5 {[%emt 0:00:28]} 17. d4 {[%emt 0:00:05]} Rd5 {[%emt 0:09:00]} 18. Nf4 {[%emt 0:00:14]} Rd8 {[%emt 0:07:40]} 19. Nh5 {[%emt 0:00:06]} Qe7 {[%emt 0:00:30]} 20. Qf3 {[%emt 0:06:31]} Rd5 {[%emt 0:10:29]} 21. Re4 {[%emt 0:03:57]} Nh4 {[%emt 0:07:59]} 22. Qg4 {[%emt 0:00:06]} Ng6 {[%emt 0:00:50]} 23. c4 {[%emt 0:05:21]} e5 {[%emt 0:02:13]} 24. Qd1 {[%emt 0:07:05]} Rxd4 {[%emt 0:00:52]} 25. Rxd4 {[%emt 0:00:21]} exd4 {[%emt 0:00:10]} 26. Nxg7 {[%emt 0:00:11]} Kxg7 {[%emt 0:00:13]} 27. Qxd4+ {[%emt 0:00:07]} Qe5 $17 {[%emt 0:00:45]} 28. Be3 {[%emt 0:00:27]} Qxd4 {[%emt 0:02:08]} 29. Bxd4+ {[%emt 0:00:06]} f6 {[%emt 0:01:04]} 30. Re1 {[%emt 0:03:13]} Kf7 {[%emt 0:00:22]} 31. Re3 {[%emt 0:01:01]} Be6 {[%emt 0:01:30]} 32. Rf3 {[%emt 0:02:06]} f5 {[%emt 0:00:16]} 33. Rb3 {[%emt 0:00:37]} Rd8 {[%emt 0:04:21]} 34. Rb7+ {[%emt 0:00:16]} Rd7 {[%emt 0:02:47]} 35. Rxd7+ {[%emt 0:00:11]} Bxd7 {[%emt 0:00:08]} 36. Bxa7 {[%emt 0:00:05]} Ne5 {[%emt 0:00:26]} 37. b3 {[%emt 0:00:31]} Ke6 {[%emt 0:02:28]} 38. Be3 {[%emt 0:00:22]} h5 {[%emt 0:00:47]} 39. Kf1 {[%emt 0:00:05]} Ng6 {[%emt 0:01:37]} 40. f4 {[%emt 0:01:19]} Bc8 {[%emt 0:31:00]} 41. g3 {[%emt 0:33:25]} Kd6 {[%emt 0:00:00]} 42. Ke2 {[%emt 0:00:00]} c5 {[%emt 0:00:00]} 43. a3 {[%emt 0:00:00]} Ba6 {[%emt 0:00:00]} 44. Kd3 {[%emt 0:00:00]} Nf8 {[%emt 0:00:00]} 45. b4 {[%emt 0:00:00]} cxb4 {[%emt 0:00:00]} 46. axb4 {[%emt 0:00:00]} Ne6 {[%emt 0:00:00]} 47. Kc3 {[%emt 0:00:00]} Bb7 {[%emt 0:00:00]} 48. Kb3 {[%emt 0:00:00]} Bg2 {[%emt 0:00:00]} 49. h4 {[%emt 0:00:00]} Nc7 {[%emt 0:00:00]} 50. Bc5+ {[%emt 0:00:00]} Kd7 {[%emt 0:00:00]} 51. Bd4 {[%emt 0:00:00]} Ne8 {[%emt 0:00:00]} 52. Be5 {[%emt 0:00:00]} Nd6 {[%emt 0:00:00]} 53. Bxd6 {[%emt 0:00:00]} Kxd6 {[%emt 0:00:00]} 54. Kc3 {[%emt 0:00:00]} Bf3 {[%emt 0:00:00]} 55. Kd4 {[%emt 0:00:00]} Bb7 {[%emt 0:00:00]} 56. b5 {[%emt 0:00:00]} Bf3 {[%emt 0:00:00]} 57. c5+ {[%emt 0:00:00]} Ke6 {[%emt 0:00:00]} 58. Kc4 1/2-1/2

[Event "NOR-ch Clubs 2017"]
[Site "Kristiansund"]
[Date "2017.10.22"]
[Round "5"]
[White "Lundeby, Oyvind Andersen"]
[Black "Nordquelle, Daniel"]
[Result "1/2-1/2"]
[ECO "A00"]
[WhiteElo "2155"]
[BlackElo "2196"]
[Annotator "NA"]
[PlyCount "114"]
[EventDate "2017.??.??"]
[EventType "team-tourn"]
[EventCountry "NOR"]
[SourceTitle "playchess.com"]
[Source "ChessBase"]
[SourceQuality "1"]
[TimeControl "40/5400:1800"]

1. e3 {[%emt 0:00:00]} Nf6 {[%emt 0:01:35]} 2. Nf3 {[%emt 0:01:04]} g6 {[%emt 0:00:42]} 3. d4 {[%emt 0:01:00]} Bg7 {[%emt 0:00:09]} 4. c4 {[%emt 0:00:41]} c5 {[%emt 0:00:16]} 5. dxc5 {[%emt 0:04:03]} Na6 {[%emt 0:00:35]} 6. Nc3 {[%emt 0:02:05]} Nxc5 {[%emt 0:00:29]} 7. Be2 {[%emt 0:00:09]} O-O {[%emt 0:00:22]} 8. O-O {[%emt 0:00:19]} b6 {[%emt 0:00:53]} 9. Nd4 {[%emt 0:06:10] LiveBook: 30 Games} Bb7 {[%emt 0:01:14] E61: Königsindisch (Abweichungen der Hauptvariante)} 10. b3 {[%emt 0:02:05]} Qc7 $146 {[%emt 0:20:47]} ({Vorgänger:} 10... d5 11. cxd5 Nxd5 12. Bb2 Nxc3 13. Bxc3 Ne4 14. Bb2 e5 15. Nf3 Qe7 16. Rc1 Rfd8 17. Qc2 {0-1 (31) Lechtynsky,J (2365)-Stocek,J (2540) Ostrava 2014}) 11. Bb2 {[%emt 0:02:00]} Rfd8 {[%emt 0:00:56]} 12. Rc1 {[%emt 0:02:40]} Rac8 {[%emt 0:00:26]} 13. Qc2 {[%emt 0:05:22]} Qb8 {[%emt 0:00:51]} 14. Qb1 {[%emt 0:03:48]} Nfe4 {[%emt 0:11:27]} 15. Rfd1 {[%emt 0:04:48]} f5 {[%emt 0:08:22]} 16. Nxe4 {[%emt 0:04:23]} Bxe4 {[%emt 0:01:35]} 17. Qa1 {[%emt 0:00:15]} f4 {[%emt 0:06:41]} 18. f3 {[%emt 0:05:52]} Bb7 {[%emt 0:01:33]} 19. e4 {[%emt 0:00:40]} Qe5 {[%emt 0:05:09]} 20. Bc3 {[%emt 0:01:01]} Qg5 {[%emt 0:00:17]} 21. Nb5 {[%emt 0:02:03]} Bxc3 {[%emt 0:00:55]} 22. Nxc3 {[%emt 0:01:06]} d6 {[%emt 0:01:32]} 23. Nd5 {[%emt 0:03:07]} Nd7 {[%emt 0:02:13]} 24. a4 {[%emt 0:03:53]} e6 {[%emt 0:00:39]} 25. Nc3 {[%emt 0:01:25]} Qc5+ {[%emt 0:00:09]} 26. Kf1 {[%emt 0:03:24]} Ne5 $14 {[%emt 0:02:21]} 27. Nb5 {[%emt 0:06:04]} Nc6 {[%emt 0:07:33]} 28. Nd4 {[%emt 0:06:13]} Kf7 {[%emt 0:01:45]} 29. Nxc6 {[%emt 0:01:24]} Bxc6 {[%emt 0:00:08]} 30. Qd4 {[%emt 0:01:00]} Rd7 {[%emt 0:02:18]} 31. Rd2 {[%emt 0:00:23]} Rcd8 {[%emt 0:00:12]} 32. Rcd1 {[%emt 0:01:17]} a6 {[%emt 0:00:21]} 33. Rd3 {[%emt 0:00:53]} g5 {[%emt 0:00:39]} 34. R1d2 {[%emt 0:00:27]} h5 {[%emt 0:00:16]} 35. h3 {[%emt 0:01:18]} Qxd4 {[%emt 0:00:38]} 36. Rxd4 {[%emt 0:00:02]} Kf6 {[%emt 0:00:03]} 37. Ke1 {[%emt 0:03:05]} Ke5 {[%emt 0:00:02]} 38. Kd1 {[%emt 0:01:50]} Rb8 {[%emt 0:00:45]} 39. Kc2 {[%emt 0:00:35]} Rbb7 {[%emt 0:00:18]} 40. Kc3 {[%emt 0:00:47]} b5 {[%emt 0:32:22]} 41. cxb5 {[%emt 0:04:23]} axb5 {[%emt 0:00:00]} 42. a5 {[%emt 0:02:11]} Rdc7 {[%emt 0:00:00]} 43. Kb4 {[%emt 0:02:44]} d5 {[%emt 0:00:00]} 44. exd5 {[%emt 0:00:26]} Bxd5 {[%emt 0:00:00]} 45. R4d3 {[%emt 0:00:16]} Kd6 {[%emt 0:00:00]} 46. Ra2 {[%emt 0:01:47]} Rc4+ {[%emt 0:00:00]} 47. Ka3 {[%emt 0:01:40]} b4+ {[%emt 0:00:00]} 48. Kb2 {[%emt 0:02:08]} Rc8 {[%emt 0:00:00]} 49. Rd2 {[%emt 0:01:29]} Ra7 {[%emt 0:00:00]} 50. Ra4 {[%emt 0:00:56]} Rb8 {[%emt 0:00:00]} 51. a6 {[%emt 0:02:07]} Kc5 {[%emt 0:00:00]} 52. Rc2+ {[%emt 0:00:19]} Kd4 {[%emt 0:00:00]} 53. Bc4 {[%emt 0:03:10]} Ke3 {[%emt 0:00:00]} 54. Re2+ {[%emt 0:00:22]} Kd4 {[%emt 0:00:00]} 55. Rd2+ {[%emt 0:00:06]} Ke3 {[%emt 0:00:00]} 56. Re2+ {[%emt 0:00:06]} Kd4 {[%emt 0:00:00]} 57. Rd2+ {[%emt 0:00:08]} Ke3 1/2-1/2

[Event "NOR-ch Clubs 2017"]
[Site "Kristiansund"]
[Date "2017.10.22"]
[Round "5"]
[White "Nyland, Thomas"]
[Black "Hestholm, Sverre"]
[Result "1-0"]
[ECO "C42"]
[WhiteElo "2152"]
[BlackElo "1654"]
[Annotator "NA"]
[PlyCount "123"]
[EventDate "2017.??.??"]
[EventType "team-tourn"]
[EventCountry "NOR"]
[SourceTitle "playchess.com"]
[Source "ChessBase"]
[SourceQuality "1"]
[TimeControl "40/5400:1800"]

1. e4 {[%emt 0:00:04]} e5 {[%emt 0:00:05]} 2. Nf3 {[%emt 0:00:10]} Nf6 {[%emt 0:00:05]} 3. Nxe5 {[%emt 0:00:09]} d6 {[%emt 0:00:04]} 4. Nf3 {[%emt 0:00:19]} Nxe4 {[%emt 0:00:08]} 5. Nc3 {[%emt 0:00:46]} Nxc3 {[%emt 0:00:05]} 6. dxc3 {[%emt 0:00:03]} Be7 {[%emt 0:00:06]} 7. Bd3 {[%emt 0:00:26]} Nc6 {[%emt 0:00:07]} 8. Be3 {[%emt 0:00:58] C42: Petroff Defence: 3 Nxe5 and unusual White 3rd moves} Be6 {[%emt 0:00:07] LiveBook: 4 Games} (8... Bf6 9. Qe2 O-O 10. O-O-O Re8 11. Kb1 Rb8 12. h4 h6 13. Rdg1 Bg4 14. Qd2 b5 15. Nd4 {½-½ (112) Yu,Y (2734)-Wang,Y (2730) Danzhou 2016}) 9. Nd4 {[%emt 0:01:54]} Nxd4 {[%emt 0:05:41]} 10. cxd4 {[%emt 0:00:30]} d5 {[%emt 0:04:59]} 11. O-O {[%emt 0:02:19]} Qd7 {[%emt 0:05:06]} 12. b3 {[%emt 0:01:53]} Bf6 $146 {[%emt 0:09:03]} ({Predecessor:} 12... O-O 13. f4 Bf5 14. Qd2 Bf6 15. h3 Rfe8 {½-½ (39) Dujic,M (1766)-Mravic,F (1777) Rijeka 2010}) 13. a4 {[%emt 0:03:14]} Bf5 {[%emt 0:07:20]} 14. Bf4 {[%emt 0:04:51]} Bxd3 {[%emt 0:02:26]} 15. Qxd3 {[%emt 0:00:11]} O-O {[%emt 0:00:38]} 16. Be5 {[%emt 0:01:27]} Bxe5 {[%emt 0:07:13]} 17. dxe5 {[%emt 0:00:04]} f6 {[%emt 0:02:51]} 18. f4 {[%emt 0:05:36]} fxe5 {[%emt 0:00:49]} 19. fxe5 {[%emt 0:00:08]} c6 {[%emt 0:03:08]} 20. c4 {[%emt 0:03:51]} d4 {[%emt 0:04:44]} 21. Qe4 {[%emt 0:01:30]} Rad8 {[%emt 0:05:41]} 22. e6 {[%emt 0:05:34]} Rfe8 {[%emt 0:03:45]} 23. Rae1 {[%emt 0:02:48]} Qd6 {[%emt 0:02:07]} 24. Rf2 $2 {[%emt 0:25:54]} (24. e7 $18 Rb8 25. b4) 24... d3 {[%emt 0:06:21]} 25. Rd2 $11 {[%emt 0:01:21]} Qd4+ {[%emt 0:00:48]} 26. Qxd4 {[%emt 0:00:11]} Rxd4 {[%emt 0:00:07]} 27. Re3 {[%emt 0:00:46]} Kf8 {[%emt 0:01:01]} 28. Rf3+ {[%emt 0:01:53]} Kg8 {[%emt 0:04:18]} 29. Rfxd3 {[%emt 0:00:34]} Rxd3 {[%emt 0:00:36]} 30. Rxd3 {[%emt 0:00:04]} Rxe6 {[%emt 0:01:07]} 31. Rd7 {[%emt 0:00:09]} b5 {[%emt 0:01:43]} 32. axb5 {[%emt 0:05:17]} cxb5 {[%emt 0:00:21]} 33. cxb5 {[%emt 0:00:44]} Rb6 {[%emt 0:00:23]} 34. Rd5 {[%emt 0:00:54]} Rb7 {[%emt 0:01:27]} 35. Kf2 {[%emt 0:00:21]} Kf7 {[%emt 0:00:54]} 36. Ke3 {[%emt 0:00:17]} Ke6 {[%emt 0:01:09]} 37. Kd4 {[%emt 0:01:47]} Rf7 {[%emt 0:01:42]} 38. Kc4 {[%emt 0:01:45]} Rf2 {[%emt 0:00:59]} 39. Rg5 {[%emt 0:00:18]} Kf6 {[%emt 0:00:38]} 40. Rg3 {[%emt 0:00:30]} Re2 {[%emt 0:30:07]} 41. Kc5 {[%emt 0:03:15]} Re6 {[%emt 0:00:00]} 42. Rf3+ {[%emt 0:05:56]} Ke7 {[%emt 0:00:00]} 43. b4 {[%emt 0:01:28]} Re5+ {[%emt 0:00:00]} 44. Kc6 {[%emt 0:00:21]} Re6+ {[%emt 0:00:00]} 45. Kb7 {[%emt 0:00:38]} Rb6+ {[%emt 0:00:00]} 46. Kxa7 {[%emt 0:00:07]} Rxb5 {[%emt 0:00:00]} 47. Rb3 {[%emt 0:00:45]} Kd8 {[%emt 0:00:00]} 48. Ka6 {[%emt 0:00:19]} Rg5 {[%emt 0:00:00]} 49. Rg3 {[%emt 0:00:14]} Rh5 {[%emt 0:00:00]} 50. Rxg7 {[%emt 0:01:10]} Rxh2 {[%emt 0:00:00]} 51. b5 {[%emt 0:00:08]} Rh1 {[%emt 0:00:00]} 52. b6 {[%emt 0:00:23]} Ra1+ {[%emt 0:00:00]} 53. Kb5 {[%emt 0:01:01]} Rb1+ {[%emt 0:00:00]} 54. Kc6 {[%emt 0:01:25]} Rc1+ {[%emt 0:00:00]} 55. Kb7 {[%emt 0:00:06]} Rc2 {[%emt 0:00:00]} 56. Rxh7 {[%emt 0:00:13]} Rxg2 {[%emt 0:00:00]} 57. Rh4 {[%emt 0:00:29]} Rb2 {[%emt 0:00:00]} 58. Rd4+ {[%emt 0:00:13]} Ke7 {[%emt 0:00:00]} 59. Kc7 {[%emt 0:00:09]} Rc2+ {[%emt 0:00:00]} 60. Kb8 {[%emt 0:00:05]} Rb2 {[%emt 0:00:00]} 61. b7 {[%emt 0:00:08]} Rb1 {[%emt 0:00:00]} 62. Kc7 {[%emt 0:00:11]} 1-0

[Event "NOR-ch Clubs 2017"]
[Site "Kristiansund"]
[Date "2017.10.22"]
[Round "5"]
[White "Darnell, Anton"]
[Black "Joa, Sander"]
[Result "1-0"]
[ECO "A45"]
[WhiteElo "2078"]
[BlackElo "1433"]
[Annotator "NA"]
[PlyCount "67"]
[EventDate "2017.??.??"]
[EventType "team-tourn"]
[EventCountry "NOR"]
[SourceTitle "playchess.com"]
[Source "ChessBase"]
[SourceQuality "1"]
[TimeControl "40/5400:1800"]

1. d4 {[%emt 0:00:03]} Nf6 {[%emt 0:00:08]} 2. Nc3 {[%emt 0:00:33]} e6 {[%emt 0:01:25]} 3. Bf4 {[%emt 0:02:00] A45: Trompowsky Attack} c5 {[%emt 0:01:19]} 4. e3 {[%emt 0:00:43]} a6 {[%emt 0:00:46]} 5. Nf3 {[%emt 0:01:21]} Nc6 {[%emt 0:01:54]} 6. a3 {[%emt 0:01:08]} d5 {[%emt 0:02:08]} 7. Bd3 {[%emt 0:02:02] LiveBook: 9 Games} (7. h3 Be7 8. Bd3 c4 9. Be2 b5 10. O-O O-O 11. Re1 Bb7 {0-1 (42) Jobava,B (2702)-Riazantsev,A (2671) Doha 2016}) 7... b5 {[%emt 0:01:28]} 8. dxc5 {[%emt 0:09:52]} Bxc5 {[%emt 0:00:49]} 9. O-O $146 {[%emt 0:00:48]} ({Predecessor:} 9. b4 Bd6 10. Bxd6 Qxd6 11. Nd4 O-O 12. Nb3 {½-½ (24) Giaracuni,C (1759)-Luppi,D (1718) Como 2007}) 9... Nh5 {[%emt 0:04:28]} 10. Bg5 {[%emt 0:10:55]} f6 {[%emt 0:01:56]} 11. Bh4 {[%emt 0:00:16]} (11. Nd4 $14 Bxd4 12. exd4 (12. Qxh5+ g6 $15)) 11... e5 $2 {[%emt 0:04:49]} (11... g6 $11 {and Black stays safe.}) 12. Nxe5 {[%emt 0:05:10]} Nxe5 {[%emt 0:00:36]} 13. Qxh5+ {[%emt 0:00:11]} g6 {[%emt 0:00:31]} 14. Qxe5+ {[%emt 0:00:17]} fxe5 {[%emt 0:00:53]} 15. Bxd8 {[%emt 0:00:12]} d4 {[%emt 0:00:29]} 16. Ne4 {[%emt 0:00:18]} Ba7 {[%emt 0:02:08]} 17. Bf6 {[%emt 0:00:24]} Rf8 {[%emt 0:00:40]} 18. Bg7 {[%emt 0:00:54]} dxe3 {[%emt 0:00:52]} 19. Nd6+ {[%emt 0:00:54]} Ke7 {[%emt 0:00:55]} 20. Bxf8+ {[%emt 0:00:03]} Kxf8 {[%emt 0:00:32]} 21. fxe3+ {[%emt 0:00:02]} Kg8 {[%emt 0:01:00]} 22. Nxc8 {[%emt 0:00:52]} Bxe3+ {[%emt 0:00:15]} 23. Kh1 {[%emt 0:00:02]} Rxc8 {[%emt 0:00:25]} 24. Rae1 {[%emt 0:00:03]} Bh6 {[%emt 0:01:09]} 25. c3 {[%emt 0:01:17]} Rd8 $18 {[%emt 0:00:24]} 26. Rd1 {[%emt 0:00:13]} Re8 {[%emt 0:00:29]} 27. Be4 {[%emt 0:00:13]} Re7 {[%emt 0:00:40]} 28. Rd8+ {[%emt 0:00:33]} Kg7 {[%emt 0:00:07]} 29. Bd5 {[%emt 0:00:09]} Bf4 {[%emt 0:00:35]} 30. g3 {[%emt 0:00:29]} Be3 {[%emt 0:00:14]} 31. h4 {[%emt 0:01:10]} e4 {[%emt 0:01:06]} 32. g4 {[%emt 0:00:43]} g5 {[%emt 0:00:38]} 33. Rg8+ {[%emt 0:00:16]} Kh6 {[%emt 0:00:23]} 34. Rf6# {[%emt 0:00:12]} 1-0

[Event "NOR-ch Clubs 2017"]
[Site "Kristiansund"]
[Date "2017.10.22"]
[Round "5"]
[White "Sjoberg, Isak"]
[Black "Dahl, Torbjorn"]
[Result "0-1"]
[ECO "B03"]
[WhiteElo "2067"]
[BlackElo "1974"]
[Annotator "NA"]
[PlyCount "96"]
[EventDate "2017.??.??"]
[EventType "team-tourn"]
[EventCountry "NOR"]
[SourceTitle "playchess.com"]
[Source "ChessBase"]
[SourceQuality "1"]
[TimeControl "40/5400:1800"]

1. e4 {[%emt 0:00:02]} Nf6 {[%emt 0:08:03]} 2. e5 {[%emt 0:00:05]} Nd5 {[%emt 0:00:10]} 3. d4 {[%emt 0:00:06]} Nb6 {[%emt 0:00:30]} 4. a4 {[%emt 0:13:53]} d6 {[%emt 0:00:57]} 5. a5 {[%emt 0:03:05]} N6d7 {[%emt 0:00:07]} 6. e6 {[%emt 0:11:40]} fxe6 {[%emt 0:00:35]} 7. h4 {[%emt 0:03:36]} Nf6 {[%emt 0:13:45]} 8. g4 {[%emt 0:05:27]} d5 {[%emt 0:22:43]} 9. Bd3 {[%emt 0:07:38]} Nc6 {[%emt 0:09:01]} 10. g5 {[%emt 0:09:15]} Ne4 {[%emt 0:12:07]} 11. c3 {[%emt 0:06:27]} Qd6 {[%emt 0:02:11]} 12. Qh5+ {[%emt 0:03:18]} g6 $15 {[%emt 0:02:16]} 13. Qe2 {[%emt 0:00:17]} e5 {[%emt 0:04:08]} 14. h5 {[%emt 0:07:57]} Bf5 {[%emt 0:01:00]} 15. Nf3 {[%emt 0:01:51]} O-O-O {[%emt 0:05:17]} 16. Na3 {[%emt 0:01:45]} Bg4 {[%emt 0:01:50]} 17. Nb5 {[%emt 0:01:04]} Qe6 {[%emt 0:00:21]} 18. Bxe4 {[%emt 0:00:33]} dxe4 {[%emt 0:00:04]} 19. Qxe4 {[%emt 0:00:08]} Bxf3 {[%emt 0:00:26]} 20. Qxf3 {[%emt 0:00:36]} exd4+ {[%emt 0:00:05]} 21. Qe2 {[%emt 0:00:17]} Qxe2+ {[%emt 0:00:52]} 22. Kxe2 {[%emt 0:00:01]} dxc3 {[%emt 0:00:26]} 23. hxg6 {[%emt 0:00:52]} Bg7 {[%emt 0:00:21]} 24. bxc3 {[%emt 0:00:38]} hxg6 {[%emt 0:00:41]} 25. Bf4 {[%emt 0:00:09]} e5 {[%emt 0:00:12]} 26. Be3 {[%emt 0:01:06]} a6 {[%emt 0:00:02]} 27. Na7+ {[%emt 0:01:11]} Nxa7 {[%emt 0:00:05]} 28. Bxa7 {[%emt 0:00:01]} e4 {[%emt 0:00:12]} 29. Rxh8 {[%emt 0:03:35]} Bxh8 {[%emt 0:00:01]} 30. Ke3 {[%emt 0:00:54]} Bxc3 {[%emt 0:00:19]} 31. Ra3 {[%emt 0:00:00]} Bg7 {[%emt 0:00:31]} 32. Kxe4 {[%emt 0:00:05]} Re8+ {[%emt 0:00:07]} 33. Kf3 {[%emt 0:00:14]} Re5 {[%emt 0:00:03]} 34. Be3 {[%emt 0:00:11]} Rf5+ {[%emt 0:00:01]} 35. Ke4 {[%emt 0:00:16]} Bf8 {[%emt 0:00:02]} 36. Ra1 {[%emt 0:00:15]} Rb5 {[%emt 0:00:03]} 37. f4 {[%emt 0:00:11]} Bb4 {[%emt 0:00:04]} 38. Rh1 {[%emt 0:00:32]} Bxa5 {[%emt 0:00:04]} 39. Rh6 {[%emt 0:00:03]} Rb4+ {[%emt 0:00:03]} 40. Kf3 {[%emt 0:00:13]} Rb3 {[%emt 0:30:11]} 41. Rxg6 {[%emt 0:30:01]} Bd2 {[%emt 0:00:03]} 42. Re6 {[%emt 0:00:12]} Kd7 {[%emt 0:00:00]} 43. f5 {[%emt 0:00:00]} a5 {[%emt 0:00:00]} 44. g6 {[%emt 0:00:00]} Bxe3 {[%emt 0:00:00]} 45. Rxe3 {[%emt 0:00:00]} Rxe3+ {[%emt 0:00:00]} 46. Kxe3 {[%emt 0:00:00]} Ke7 {[%emt 0:00:00]} 47. g7 {[%emt 0:00:00]} Kf7 {[%emt 0:00:00]} 48. f6 {[%emt 0:00:00]} a4 {[%emt 0:00:00]} 0-1

[Event "NOR-ch Clubs 2017"]
[Site "Kristiansund"]
[Date "2017.10.22"]
[Round "5"]
[White "Wetle Hoem, Tor"]
[Black "Al-Tarbosh, Ward"]
[Result "0-1"]
[ECO "D10"]
[WhiteElo "1965"]
[BlackElo "2270"]
[Annotator "NA"]
[PlyCount "76"]
[EventDate "2017.??.??"]
[EventType "team-tourn"]
[EventCountry "NOR"]
[SourceTitle "playchess.com"]
[Source "ChessBase"]
[SourceQuality "1"]
[TimeControl "40/5400:1800"]

1. d4 {[%emt 0:00:02]} d5 {[%emt 0:03:22]} 2. c4 {[%emt 0:01:33]} c6 {[%emt 0:00:04]} 3. Nc3 {[%emt 0:01:08]} Nf6 {[%emt 0:00:06]} 4. cxd5 {[%emt 0:00:28]} cxd5 {[%emt 0:00:18]} 5. Bf4 {[%emt 0:00:28]} Bf5 {[%emt 0:00:08]} 6. e3 {[%emt 0:02:40]} Nc6 {[%emt 0:00:20]} 7. Bd3 {[%emt 0:01:17]} Bxd3 {[%emt 0:05:44]} 8. Qxd3 {[%emt 0:03:05] LiveBook: 98 Partien} e6 {[%emt 0:21:13]} 9. Nge2 {[%emt 0:02:24] D10: Slav Defence: 3 cxd5 (without early Nf3) and 3 Nc3} (9. Nf3 Be7 10. h3 O-O 11. O-O Rc8 12. Rac1 a6 13. Ne5 Nxe5 14. Bxe5 Nd7 15. Bg3 Nb6 16. Rc2 Qd7 17. Rfc1 Nc4 18. Nd1 Rc6 19. b3 Na5 20. Qd2 Rfc8 21. Nb2 {½-½ (97) Timofeev,A (2593)-Hovhannisyan,R (2636) Moscow 2016}) 9... Bd6 {[%emt 0:00:20]} 10. Bg3 {[%emt 0:02:16]} O-O $146 {[%emt 0:00:07]} ({Predecessor:} 10... Bxg3 11. hxg3 Qb6 12. O-O Nb4 13. Qd1 Ng4 14. a3 Nc6 15. Na4 Qd8 16. Nf4 Nf6 {½-½ (65) Eilenberg,J (1754)-Chassard,C (1290) Willingen 2017}) 11. O-O {[%emt 0:06:48]} Qd7 {[%emt 0:02:14]} 12. f3 {[%emt 0:05:01]} e5 {[%emt 0:01:39]} 13. Bh4 {[%emt 0:09:09]} exd4 {[%emt 0:17:57]} 14. Nxd4 {[%emt 0:07:16]} Be5 {[%emt 0:00:12]} 15. Nce2 {[%emt 0:03:35]} Rfe8 {[%emt 0:00:16]} 16. a3 {[%emt 0:06:32]} Qc7 {[%emt 0:04:31]} 17. Bg3 {[%emt 0:04:53]} Nh5 {[%emt 0:00:24]} 18. f4 {[%emt 0:11:11]} Bxd4 {[%emt 0:01:18]} 19. Nxd4 {[%emt 0:01:09]} Nxg3 {[%emt 0:00:14]} 20. hxg3 {[%emt 0:00:08]} Qb6 {[%emt 0:00:02]} 21. Rfe1 {[%emt 0:07:55]} Re4 {[%emt 0:01:21]} 22. Qb5 {[%emt 0:01:38]} Nxd4 {[%emt 0:01:26]} 23. Qxb6 {[%emt 0:00:49]} axb6 {[%emt 0:00:01]} 24. exd4 {[%emt 0:00:17]} Rxd4 {[%emt 0:03:02]} 25. Re7 {[%emt 0:00:13]} Rc8 {[%emt 0:00:13]} 26. Rae1 {[%emt 0:00:57]} h5 {[%emt 0:00:57]} 27. Rxb7 {[%emt 0:00:07]} Rd2 {[%emt 0:01:02]} 28. Rxb6 {[%emt 0:04:14]} Rcc2 {[%emt 0:00:26]} 29. Rb3 $15 {[%emt 0:00:45]} (29. Kh1 $17) 29... Rxg2+ {[%emt 0:00:09]} 30. Kh1 {[%emt 0:00:02]} h4 {[%emt 0:12:27]} 31. gxh4 {[%emt 0:00:20]} Rg4 {[%emt 0:00:22]} 32. Rd1 {[%emt 0:01:10]} Rxh4+ {[%emt 0:00:28]} 33. Kg1 {[%emt 0:00:00]} Rg4+ {[%emt 0:00:02]} 34. Kh1 {[%emt 0:00:03]} Rxf4 {[%emt 0:00:10]} 35. Rb5 {[%emt 0:00:08]} d4 {[%emt 0:01:24]} 36. b4 {[%emt 0:00:01]} Rg4 {[%emt 0:01:57]} 37. Rd5 {[%emt 0:00:04]} Rc3 {[%emt 0:00:43]} 38. Kh2 Rxa3 0-1

[Event "NOR-ch Clubs 2017"]
[Site "Kristiansund"]
[Date "2017.10.22"]
[Round "5"]
[White "Sorensen, Simen"]
[Black "Standal, Egil Arne"]
[Result "1/2-1/2"]
[ECO "B18"]
[WhiteElo "1787"]
[BlackElo "1824"]
[Annotator "NA"]
[PlyCount "35"]
[EventDate "2017.??.??"]
[EventType "team-tourn"]
[EventCountry "NOR"]
[SourceTitle "playchess.com"]
[Source "ChessBase"]
[SourceQuality "1"]
[TimeControl "40/5400:1800"]

{[%evp 8,25,19,22,33,16,37,40,29,32767,41,32767,32767,6,30,0,0,32767,0,-15]} 1. e4 {[%emt 0:00:10]} c6 {[%emt 0:01:18]} 2. d4 {[%emt 0:00:13]} d5 {[%emt 0:00:18]} 3. Nc3 {[%emt 0:01:30]} dxe4 {[%emt 0:00:11]} 4. Nxe4 {[%emt 0:00:07]} Bf5 {[%emt 0:00:08]} 5. Ng3 {[%emt 0:00:07]} Bg6 {[%emt 0:00:04] LiveBook: 11749 Games} 6. Nf3 {[%emt 0:00:45]} Nd7 {[%emt 0:00:42]} 7. Bd3 {[%emt 0:02:05]} Bxd3 {[%emt 0:00:16]} 8. Qxd3 {[%emt 0:00:47]} Ngf6 {[%emt 0:01:38]} 9. Bd2 {[%emt 0:02:56]} e6 {[%emt 0:00:39]} 10. O-O {[%emt 0:00:48]} Bd6 {[%emt 0:00:41]} 11. a4 {[%emt 0:04:59]} O-O {[%emt 0:01:18]} 12. Rfe1 {[%emt 0:05:50]} Qc7 $11 {[%emt 0:00:32]} 13. Bc3 {[%emt 0:01:21]} Rad8 {[%emt 0:07:16]} 14. Qe2 {[%emt 0:09:59]} Nd5 {[%emt 0:04:22]} 15. Ne4 {[%emt 0:01:08]} Nxc3 {[%emt 0:02:58]} 16. Nxc3 {[%emt 0:00:36]} Nf6 {[%emt 0:03:46]} 17. Ne4 {[%emt 0:05:19]} Nxe4 {[%emt 0:03:19]} 18. Qxe4 {[%emt 0:00:21]} 1/2-1/2